fUSD/lending_fUSD_20240910
["ID","MTS","AMOUNT","RATE_DAILY","PERIOD"]
[337684882,1725956169719,250.0,0.00011474,2]
[337684883,1725956190993,178.16,9.171e-05,2]
[337684884,1725956197015,189.94,0.00011464,2]
[337684885,1725956198788,507.38,0.00011464,2]
[337684886,1725956203110,1008.49065186,0.00011994,2]
[337684887,1725956206661,250.0,0.00011454,2]
[337684888,1725956282241,712.91,0.00011413,2]
[337684889,1725956339379,737.6,0.00011422,2]
[337684890,1725956407038,23900.0,0.00011433,2]
[337684891,1725956478246,250.0,0.00011404,2]
[337684892,1725956499638,222.2,0.00011394,2]
[337684893,1725956568863,729.22,0.00012,2]
[337684894,1725956580504,729.22,0.00012,2]
[337684895,1725956593550,1000.0,0.00012,2]
[337684896,1725956605514,414.85,0.00010959,2]
[337684897,1725956660845,1000.0,0.00012,2]
[337684898,1725956673130,1000.0,0.00012,2]
[337684899,1725956679493,1000.0,0.00012,2]
[337684900,1725956683394,1000.0,0.00012,2]
[337684901,1725956688888,1000.0,0.00012,2]
[337684902,1725956696576,1000.0,0.00012,2]
[337684903,1725956700006,192.47,0.00012001,2]
[337684904,1725956705204,150.0,0.00011367,2]
[337684905,1725956707871,150.0,0.00011367,2]
[337684906,1725956711476,709.72,9.525e-05,2]
[337684907,1725956711784,709.72,0.00011789,2]
[337684908,1725956712483,1000.0,0.00012,2]
[337684909,1725956715051,150.0,0.00011367,2]
[337684910,1725956718450,907.64158662,0.00011993,2]
[337684911,1725956722763,1000.0,0.00012,2]
[337684912,1725956723936,250.0,0.00011436,2]
[337684913,1725956735080,229.29230404,0.0001,2]
[337684914,1725956753953,1000.0,0.00012,2]
[337684922,1725956807749,253.69,0.00011414,2]
[337684923,1725956845601,245.57437302,0.000101,2]
[337684924,1725956851075,1000.0,0.000116,4]
[337684925,1725956853171,2000.0,0.000117,4]
[337684926,1725956855281,3000.0,0.000118,4]
[337684927,1725956857539,4000.0,0.000119,4]
[337684928,1725956881642,14216.31751108,0.0001,2]
[337684929,1725956895728,14945.26753759,0.000109,2]
[337684934,1725956911576,-3182.47,0.00012054,2]
[337684936,1725956911607,-2783.1367685,0.00012055,2]
[337684937,1725956911664,-3052.23,0.00012054,2]
[337684938,1725956911696,-1540.60382901,0.00012055,2]
[337684939,1725956914320,23900.0,0.00011375,2]
[337684941,1725956920534,211.48142336,0.0001,2]
[337684943,1725956936500,-2961.76,0.00012054,2]
[337684944,1725956936531,-3215.01558045,0.00012055,2]
[337684945,1725956936572,-5809.23792726,0.00012055,2]
[337684946,1725956961343,-6416.4958506,0.00012055,2]
[337684947,1725956961394,-3371.29115608,0.00012055,2]
[337684948,1725956968509,1000.0,0.00011383,2]
[337684949,1725956982580,152.59925876,0.00011955,2]
[337684950,1725956983472,250.0,0.0001138,2]
[337684951,1725956986376,-2277.63,0.00012054,2]
[337684952,1725956986406,-4334.62159074,0.00012055,2]
[337684953,1725956986442,-5297.8082027,0.00012055,2]
[337684954,1725956986497,222.24,0.00011364,2]
[337684972,1725957032001,-352.86780137,0.0001205,2]
[337684973,1725957032012,-738.73840471,0.0001205,2]
[337684974,1725957032058,-357.43011143,0.0001205,2]
[337684975,1725957032118,-127059.22945835,0.0001205,2]
[337684976,1725957032130,-2063.74636447,0.0001205,2]
[337684977,1725957032179,-2417.64878082,0.0001205,2]
[337685205,1725957041431,-2295.92,0.0001205,2]
[337685346,1725957043039,-114714.41907885,0.0001205,2]
[337685348,1725957043049,-2877.63972049,0.00012054,2]
[337685350,1725957043058,-1202.09,0.00012054,2]
[337685352,1725957043067,-300.0,0.00012054,2]
[337685354,1725957043076,-150.0,0.00012054,2]
[337685356,1725957043085,-890.34,0.00012054,2]
[337685358,1725957043094,-2953.25,0.00012054,2]
[337685360,1725957043104,-6057.12,0.00012054,2]
[337685362,1725957043113,-500.0,0.00012054,2]
[337685363,1725957043122,-844.51,0.00012054,2]
[337685365,1725957043131,-999.85,0.00012054,2]
[337685367,1725957043141,-73660.99452501,0.00012055,2]
[337685681,1725957046285,-500.0,0.00012054,2]
[337685683,1725957046296,-593036.98467392,0.00012055,2]
[337685688,1725957046330,-14167.04404329,0.00012055,2]
[337685806,1725957048233,750.0,0.00011,2]
[337685893,1725957051527,250.0,0.00011374,2]
[337685896,1725957160243,153.12,0.00010959,2]
[337685897,1725957199642,183.49060651,0.00011955,2]
[337685898,1725957229741,679.54,9.456e-05,2]
[337685899,1725957230088,679.54,0.0001172,2]
[337685900,1725957233827,816.87742803,0.00011955,2]
[337685902,1725957300782,253.69,0.0001134,2]
[337685903,1725957348899,250.0,0.00011364,2]
[337685904,1725957367194,399.33544912,0.00011993,2]
[337685905,1725957409682,23900.0,0.00011365,2]
[337685906,1725957475355,543.0,0.00012,2]
[337685907,1725957475602,200.0,0.00011335,2]
[337685908,1725957483363,500.0,0.00012,2]
[337685909,1725957493568,500.0,0.00012,2]
[337685910,1725957503120,500.0,0.00012,2]
[337685911,1725957508547,250.0,0.00011338,2]
[337685912,1725957535892,250.0,0.00011338,2]
[337685913,1725957543453,222.2,0.00011351,2]
[337685914,1725957573066,168.75,0.00011338,2]
[337685915,1725957574540,1000.0,0.00012,2]
[337685916,1725957582326,1000.0,0.00012,2]
[337685917,1725957586838,1000.0,0.00012,2]
[337685918,1725957597529,1069.0,0.00012,2]
[337685961,1725957724410,853.71126,0.0001195,2]
[337685962,1725957724452,853.71127,0.0001197,2]
[337685968,1725957749254,735.1896852,0.00011954,2]
[337685969,1725957795305,611.58,9.412e-05,2]
[337685970,1725957795688,611.58,0.00011676,2]
[337686001,1725957906290,150.0,0.00011244,2]
[337686002,1725957906483,23900.0,0.00011343,2]
[337686003,1725957908082,150.0,0.00011244,2]
[337686004,1725957914972,150.0,0.00011244,2]
[337686005,1725957965039,250.0,0.0001133,2]
[337686006,1725958011893,250.0,0.0001133,2]
[337686007,1725958016807,840.0,0.00011343,2]
[337686012,1725958033332,500.0,0.000117,4]
[337686013,1725958034628,250.0,0.0001133,2]
[337686014,1725958035418,1000.0,0.000118,4]
[337686015,1725958037535,1500.0,0.000119,4]
[337686016,1725958072740,597.41247,0.0001193,2]
[337686017,1725958081788,222.24,0.00011354,2]
[337686019,1725958096910,-1016.9476,0.00012027,2]
[337686021,1725958096939,-150.0,0.00012052,2]
[337686023,1725958096968,-2499.89,0.00012052,2]
[337686024,1725958096997,-500.0,0.00012053,2]
[337686025,1725958097025,-500.0,0.00012053,2]
[337686026,1725958097053,-999.85,0.00012053,2]
[337686027,1725958097082,-1164.13514674,0.00012053,2]
[337686028,1725958097122,-407.69485326,0.00012053,2]
[337686029,1725958097151,-1435.04563263,0.00012053,2]
[337686030,1725958121808,-1992.4333016,0.00012052,2]
[337686031,1725958121861,-630.2166984,0.00012052,2]
[337686032,1725958121889,-500.0,0.00012052,2]
[337686033,1725958121918,-1178.18,0.00012052,2]
[337686034,1725958121946,-3049.87,0.00012052,2]
[337686035,1725958121974,-1646.027313,0.00012053,2]
[337686036,1725958146837,-300.0,0.00012051,2]
[337686037,1725958146867,-2785.83,0.00012052,2]
[337686038,1725958146897,-3361.09,0.00012052,2]
[337686039,1725958146927,-737.30855766,0.00012052,2]
[337686040,1725958146967,-1464.89144234,0.00012052,2]
[337686041,1725958146996,-447.49228955,0.00012053,2]
[337686042,1725958171840,-7366.16080345,0.00012052,2]
[337686043,1725958171894,-1236.18560136,0.00012052,2]
[337686044,1725958196878,-359.96359519,0.00012052,2]
[337686045,1725958196911,-2838.36,0.00012052,2]
[337686046,1725958196944,-1512.67640481,0.00012052,2]
[337686058,1725958232102,-300.0,0.00012051,2]
[337686060,1725958232111,-1004.11638938,0.00012052,2]
[337686071,1725958232159,-854.26720581,0.00012052,2]
[337686073,1725958232168,-2786.66,0.00012052,2]
[337686075,1725958232176,-1162.8,0.00012052,2]
[337686077,1725958232186,-2323.21,0.00012052,2]
[337686079,1725958232195,-663.61,0.00012052,2]
[337686081,1725958232203,-2182.73,0.00012052,2]
[337686083,1725958232213,-850.35,0.00012052,2]
[337686085,1725958232223,-622.17279419,0.00012052,2]
[337686088,1725958238374,-438.52720581,0.00012052,2]
[337686089,1725958238384,-500.0,0.00012052,2]
[337686090,1725958238393,-1202.09,0.00012052,2]
[337686091,1725958238403,-435.84922589,0.00012052,2]
[337686092,1725958238490,-64.15077411,0.00012052,2]
[337686093,1725958238499,-311.30938587,0.00012052,2]
[337686094,1725958238511,-1406.34325692,0.00012052,2]
[337686095,1725958238544,-2206.20845016,0.00012052,2]
[337686097,1725958238556,-610.07294809,0.00012052,2]
[337686113,1725958240221,-1247.19195163,0.00012052,2]
[337686114,1725958240233,-2712.81429763,0.00012052,2]
[337686115,1725958240244,-730.07124766,0.00012052,2]
[337686116,1725958240337,-29427.35846204,0.00012052,2]
[337686117,1725958240346,-958.19,0.00012052,2]
[337686118,1725958240355,-890.34,0.00012052,2]
[337686119,1725958240366,-3037.92,0.00012052,2]
[337686120,1725958240376,-784.12011794,0.00012053,2]
[337686121,1725958240386,-138.73436737,0.00012053,2]
[337686122,1725958240395,-1791.5,0.00012053,2]
[337686123,1725958240405,-457.58174421,0.00012053,2]
[337686124,1725958240414,-1215.61,0.00012053,2]
[337686125,1725958240423,-500.0,0.00012053,2]
[337686126,1725958240432,-500.0,0.00012053,2]
[337686127,1725958240442,-640.56,0.00012053,2]
[337686128,1725958240451,-1159.51,0.00012053,2]
[337686129,1725958240461,-1887.91,0.00012053,2]
[337686130,1725958240471,-245.2992413,0.00012053,2]
[337686131,1725958240481,-879.82,0.00012053,2]
[337686132,1725958240490,-1652.63,0.00012053,2]
[337686133,1725958240499,-500.0,0.00012053,2]
[337686134,1725958240509,-579.21,0.00012053,2]
[337686135,1725958240518,-500.0,0.00012053,2]
[337686136,1725958240527,-500.0,0.00012053,2]
[337686137,1725958240537,-1067.67,0.00012053,2]
[337686138,1725958240546,-500.0,0.00012053,2]
[337686139,1725958240555,-1488.17,0.00012053,2]
[337686140,1725958240564,-500.0,0.00012053,2]
[337686141,1725958240573,-1388.94,0.00012053,2]
[337686142,1725958240582,-500.0,0.00012053,2]
[337686143,1725958240592,-801.53,0.00012053,2]
[337686144,1725958240601,-626.9596057,0.00012053,2]
[337686145,1725958240611,-2157.94544492,0.00012053,2]
[337686146,1725958240623,-263.25455508,0.00012053,2]
[337686147,1725958240632,-456.28303292,0.00012053,2]
[337686148,1725958240643,-547.52749393,0.00012053,2]
[337686149,1725958240665,-332.54659203,0.00012053,2]
[337686150,1725958240681,-395.48039178,0.00012053,2]
[337686151,1725958240696,-72.58248934,0.00012053,2]
[337686153,1725958240706,-1246.36,0.00012053,2]
[337686155,1725958240715,-494.34749919,0.00012053,2]
[337686157,1725958240727,-1704.11250081,0.00012053,2]
[337686159,1725958240736,-1046.64,0.00012053,2]
[337686161,1725958240747,-1133.68894511,0.00012053,2]
[337686163,1725958240760,-996.45,0.00012053,2]
[337686166,1725958240771,-130.10105489,0.00012053,2]
[337686168,1725958240781,-500.0,0.00012053,2]
[337686170,1725958240791,-1114.38,0.00012053,2]
[337686172,1725958240801,-446.35059511,0.00012053,2]
[337686190,1725958243188,-775.77940489,0.00012053,2]
[337686191,1725958243198,-500.0,0.00012053,2]
[337686193,1725958243207,-573.40575,0.00012053,2]
[337686195,1725958243217,-2610.58,0.00012053,2]
[337686197,1725958243226,-500.0,0.00012053,2]
[337686199,1725958243237,-500.0,0.00012053,2]
[337686201,1725958243246,-960.4,0.00012053,2]
[337686202,1725958243256,-2953.25,0.00012053,2]
[337686205,1725958243266,-483.44285443,0.00012053,2]
[337686207,1725958243277,-6057.12,0.00012053,2]
[337686208,1725958243286,-6382.88,0.00012053,2]
[337686211,1725958243296,-844.51,0.00012053,2]
[337686212,1725958243305,-1169.15,0.00012053,2]
[337686214,1725958243315,-5779.44,0.00012053,2]
[337686215,1725958243325,-727.82,0.00012053,2]
[337686216,1725958243336,-500.0,0.00012053,2]
[337686217,1725958243346,-564.84,0.00012053,2]
[337686218,1725958243356,-1600.21,0.00012053,2]
[337686219,1725958243365,-500.0,0.00012053,2]
[337686220,1725958243375,-776.39,0.00012053,2]
[337686221,1725958243385,-7356.04,0.00012053,2]
[337686222,1725958243395,-1291.55,0.00012053,2]
[337686223,1725958243405,-2081.74,0.00012053,2]
[337686225,1725958243414,-537.89,0.00012053,2]
[337686226,1725958243423,-2132.43,0.00012053,2]
[337686227,1725958243433,-500.0,0.00012053,2]
[337686228,1725958243442,-3470.62,0.00012053,2]
[337686229,1725958243451,-2462.21,0.00012053,2]
[337686230,1725958243461,-1275.84,0.00012053,2]
[337686231,1725958243470,-500.0,0.00012053,2]
[337686232,1725958243480,-868.91,0.00012053,2]
[337686233,1725958243489,-2244.35,0.00012053,2]
[337686234,1725958243498,-500.0,0.00012053,2]
[337686235,1725958243508,-744.17,0.00012053,2]
[337686236,1725958243517,-500.0,0.00012053,2]
[337686238,1725958243527,-1087.0,0.00012053,2]
[337686240,1725958243536,-500.0,0.00012053,2]
[337686242,1725958243545,-2002.65,0.00012053,2]
[337686243,1725958243555,-4576.7,0.00012053,2]
[337686244,1725958243564,-4921.49,0.00012053,2]
[337686245,1725958243574,-500.0,0.00012053,2]
[337686246,1725958243583,-5510.19,0.00012053,2]
[337686247,1725958243592,-500.0,0.00012053,2]
[337686248,1725958243602,-2805.67,0.00012053,2]
[337686249,1725958243613,-3068.73,0.00012053,2]
[337686250,1725958243623,-500.0,0.00012053,2]
[337686251,1725958243632,-3624.52613633,0.00012053,2]
[337686252,1725958243655,-282.00386367,0.00012053,2]
[337686253,1725958243667,-663.23,0.00012053,2]
[337686254,1725958243678,-179.47691144,0.00012053,2]
[337686256,1725958245546,-300.0,0.00012053,2]
[337686258,1725958246242,-1776.12308856,0.00012053,2]
[337686259,1725958246252,-3954.06807145,0.00012053,2]
[337686260,1725958246264,-2224.10192855,0.00012053,2]
[337686261,1725958246273,-1120.05973352,0.00012053,2]
[337686262,1725958246463,-1190.13026648,0.00012053,2]
[337686263,1725958246473,-1464.93,0.00012053,2]
[337686264,1725958246483,-2844.93973352,0.00012053,2]
[337686265,1725958246494,-5453.70422993,0.00012053,2]
[337686266,1725958246578,-747.54487454,0.00012053,2]
[337686267,1725958256042,-150.0,0.00012052,2]
[337686268,1725958264744,661.67071668,0.00011954,2]
[337686269,1725958271341,11507.0,0.000101,5]
[337686270,1725958273411,1122.32574152,0.00011826,2]
[337686271,1725958295251,180.68,0.00011927,2]
[337686272,1725958302459,563.3,9.453e-05,2]
[337686273,1725958302812,563.3,0.00011717,2]
[337686274,1725958329091,7500.0,0.00011955,2]
[337686275,1725958330697,310.86,0.00010959,2]
[337686276,1725958332808,212.93,0.00011348,2]
[337686277,1725958352827,20680.8727,0.00011954,2]
[337686278,1725958358704,372.441,0.00011953,2]
[337686279,1725958407439,150.0,0.00011357,2]
[337686280,1725958420842,569.14084,0.0001193,2]
[337686281,1725958432398,2500.0,0.00011954,2]
[337686282,1725958434110,23900.0,0.00011367,2]
[337686283,1725958443081,332.34315087,0.00011954,2]
[337686288,1725958478311,250.0,0.00011357,2]
[337686289,1725958528928,250.0,0.00011357,2]
[337686290,1725958554812,173.62,0.00011925,2]
[337686291,1725958564419,328.0,0.00011357,2]
[337686292,1725958577995,188.6,0.00011357,2]
[337686293,1725958578158,222.24,0.00011357,2]
[337686294,1725958581150,153.32,0.00011357,2]
[337686295,1725958587257,250.0,0.00011357,2]
[337686296,1725958602068,1434.1674,0.00011953,2]
[337686297,1725958624477,197.0077,0.00011952,2]
[337686298,1725958652229,367.30385396,0.00011955,2]
[337686299,1725958678861,3124.069,0.00011952,2]
[337686300,1725958711545,771.542,0.00011814,2]
[337686301,1725958711589,236.96,0.00011814,2]
[337686302,1725958732767,3678.4285,0.00011952,2]
[337686303,1725958768968,497.84372,0.0001193,2]
[337686304,1725958779961,1576.92052755,0.00011952,2]
[337686305,1725958824477,506.97,9.398e-05,2]
[337686306,1725958824823,506.97,0.00011662,2]
[337686307,1725958824854,420.66956483,0.00011912,2]
[337686308,1725958872041,750.0,0.00011,2]
[337686315,1725958949409,10207.16,0.00011294,2]
[337686316,1725959012826,250.0,0.00011258,2]
[337686317,1725959074266,168.75,0.00011272,2]
[337686318,1725959076207,250.0,0.00011272,2]
[337686319,1725959097315,222.24,0.00011272,2]
[337686320,1725959118043,150.0,0.00011244,2]
[337686321,1725959147466,474.28403,0.0001193,2]
[337686322,1725959160204,737.6,0.00011285,2]
[337686323,1725959235181,300.0,0.000117,4]
[337686324,1725959237280,700.0,0.000118,4]
[337686325,1725959239518,1100.0,0.000119,4]
[337686326,1725959295362,1419.22847475,0.00011951,2]
[337686327,1725959304464,250.0,0.00011301,2]
[337686328,1725959315644,456.27,9.366e-05,2]
[337686329,1725959316001,456.27,0.0001163,2]
[337686330,1725959392289,220.60246218,0.00011955,2]
[337686341,1725959432286,-408.9014,0.00012027,2]
[337686342,1725959432297,-152.11,0.00012042,2]
[337686343,1725959432307,-33.98686677,0.00012042,2]
[337686344,1725959432341,-129.671897,0.00012042,2]
[337686345,1725959432351,-204.83557562,0.0001205,2]
[337686346,1725959432365,-349.83455457,0.0001205,2]
[337686347,1725959432374,-500.0,0.0001205,2]
[337686348,1725959432386,-500.0,0.0001205,2]
[337686349,1725959432395,-447.5709322,0.0001205,2]
[337686350,1725959432406,-9.42450068,0.0001205,2]
[337686351,1725959432416,-150.0,0.0001205,2]
[337686352,1725959432425,-918.27,0.0001205,2]
[337686353,1725959432434,-500.0,0.0001205,2]
[337686354,1725959432444,-573.40575,0.00012051,2]
[337686355,1725959432453,-500.0,0.00012051,2]
[337686356,1725959432463,-500.0,0.00012051,2]
[337686357,1725959432472,-483.44285443,0.00012051,2]
[337686358,1725959432483,-1506.34,0.00012051,2]
[337686359,1725959432494,-564.84,0.00012051,2]
[337686360,1725959432505,-13.78161277,0.00012051,2]
[337686361,1725959432524,-335.92939992,0.00012051,2]
[337686362,1725959432535,-348.89010204,0.00012051,2]
[337686363,1725959432546,-566.54007379,0.00012051,2]
[337686364,1725959432562,-243.06881148,0.00012051,2]
[337686365,1725959432571,-500.0,0.00012051,2]
[337686367,1725959432581,-91.74315638,0.00012051,2]
[337686369,1725959432592,-358.935,0.00012051,2]
[337686371,1725959432604,-1266.17184362,0.00012051,2]
[337686372,1725959432613,-1164.96,0.00012051,2]
[337686373,1725959432623,-500.0,0.00012051,2]
[337686374,1725959432633,-613.87,0.00012051,2]
[337686375,1725959432642,-1111.19,0.00012051,2]
[337686376,1725959432652,-500.0,0.00012051,2]
[337686377,1725959432661,-1722.54992477,0.00012051,2]
[337686378,1725959432672,-86.70007523,0.00012051,2]
[337686379,1725959432681,-258.79992477,0.00012051,2]
[337686380,1725959432694,-584.36007523,0.00012051,2]
[337686381,1725959432703,-500.0,0.00012051,2]
[337686382,1725959432713,-500.0,0.00012051,2]
[337686383,1725959432723,-500.0,0.00012051,2]
[337686384,1725959432732,-354.45366922,0.00012051,2]
[337686390,1725959438530,-1229.31633078,0.00012051,2]
[337686391,1725959438540,-202.60363756,0.00012051,2]
[337686406,1725959440581,-460.63094984,0.00012051,2]
[337686407,1725959440645,-667.8354126,0.00012051,2]
[337686408,1725959440655,-374.0145874,0.00012051,2]
[337686409,1725959440666,-181.0554126,0.00012051,2]
[337686410,1725959440675,-500.0,0.00012051,2]
[337686411,1725959440685,-2320.32,0.00012051,2]
[337686412,1725959440694,-500.0,0.00012051,2]
[337686413,1725959440703,-500.0,0.00012051,2]
[337686414,1725959440712,-1023.19,0.00012051,2]
[337686415,1725959440725,-500.0,0.00012051,2]
[337686416,1725959440736,-1426.17,0.00012051,2]
[337686417,1725959440746,-768.13,0.00012051,2]
[337686418,1725959440755,-1194.43,0.00012051,2]
[337686419,1725959440767,-2106.86,0.00012051,2]
[337686420,1725959440776,-1729.24,0.00012051,2]
[337686421,1725959440785,-500.0,0.00012051,2]
[337686422,1725959440795,-2166.06,0.00012051,2]
[337686423,1725959440804,-1067.95,0.00012051,2]
[337686424,1725959440814,-1171.21,0.00012051,2]
[337686426,1725959440823,-500.0,0.00012051,2]
[337686428,1725959440832,-2610.58,0.00012051,2]
[337686430,1725959440841,-1003.03,0.00012051,2]
[337686432,1725959440851,-960.4,0.00012051,2]
[337686434,1725959440860,-869.52,0.00012051,2]
[337686436,1725959440869,-500.0,0.00012051,2]
[337686438,1725959440879,-2930.23,0.00012051,2]
[337686440,1725959440888,-1787.48,0.00012051,2]
[337686442,1725959440898,-500.0,0.00012051,2]
[337686444,1725959440908,-500.0,0.00012051,2]
[337686445,1725959440918,-37040.89,0.00012051,2]
[337686447,1725959440928,-1169.15,0.00012051,2]
[337686449,1725959440938,-6382.88,0.00012051,2]
[337686451,1725959440947,-7984.33,0.00012051,2]
[337686453,1725959440956,-2911.34,0.00012051,2]
[337686455,1725959440966,-500.0,0.00012051,2]
[337686457,1725959440976,-727.82,0.00012051,2]
[337686459,1725959440986,-500.0,0.00012051,2]
[337686461,1725959440996,-500.0,0.00012051,2]
[337686462,1725959441006,-5779.44,0.00012051,2]
[337686463,1725959441015,-1600.21,0.00012051,2]
[337686464,1725959441024,-7356.04,0.00012051,2]
[337686465,1725959441034,-776.39,0.00012051,2]
[337686466,1725959441043,-2081.74,0.00012051,2]
[337686467,1725959441053,-500.0,0.00012051,2]
[337686468,1725959441062,-500.0,0.00012051,2]
[337686469,1725959441071,-1291.55,0.00012051,2]
[337686470,1725959441081,-2922.79,0.00012051,2]
[337686471,1725959441090,-500.0,0.00012051,2]
[337686472,1725959441100,-2462.21,0.00012051,2]
[337686473,1725959441109,-2395.73,0.00012051,2]
[337686474,1725959441119,-537.89,0.00012051,2]
[337686475,1725959441128,-1087.0,0.00012051,2]
[337686476,1725959441138,-3221.05,0.00012051,2]
[337686477,1725959441147,-2513.37,0.00012051,2]
[337686478,1725959441156,-2132.43,0.00012051,2]
[337686479,1725959441165,-1275.84,0.00012051,2]
[337686480,1725959441175,-868.91,0.00012051,2]
[337686481,1725959441184,-597.2,0.00012051,2]
[337686482,1725959441193,-3470.62,0.00012051,2]
[337686483,1725959441203,-2720.09,0.00012051,2]
[337686484,1725959441212,-2805.67,0.00012051,2]
[337686485,1725959441222,-1129.08,0.00012051,2]
[337686486,1725959441234,-2244.35,0.00012051,2]
[337686487,1725959441243,-2669.75,0.00012051,2]
[337686488,1725959441252,-4921.49,0.00012051,2]
[337686489,1725959441261,-635.59,0.00012051,2]
[337686490,1725959441270,-2110.44,0.00012051,2]
[337686491,1725959441279,-2213.93,0.00012051,2]
[337686492,1725959441289,-4576.7,0.00012051,2]
[337686493,1725959441298,-2002.65,0.00012051,2]
[337686494,1725959441308,-2226.41,0.00012051,2]
[337686495,1725959441317,-8588.88,0.00012051,2]
[337686496,1725959441326,-1673.36,0.00012051,2]
[337686497,1725959441335,-3068.73,0.00012051,2]
[337686498,1725959441344,-7346.93,0.00012051,2]
[337686499,1725959441353,-500.0,0.00012051,2]
[337686500,1725959441363,-2091.78,0.00012051,2]
[337686501,1725959441371,-3230.6,0.00012051,2]
[337686502,1725959441381,-5289.98,0.00012051,2]
[337686503,1725959441390,-2670.55,0.00012051,2]
[337686504,1725959441399,-1152.0,0.00012051,2]
[337686505,1725959441408,-5920.74,0.00012051,2]
[337686506,1725959441417,-3894.78,0.00012051,2]
[337686507,1725959441427,-853.24,0.00012051,2]
[337686508,1725959441435,-1403.89,0.00012051,2]
[337686509,1725959441445,-2161.61,0.00012051,2]
[337686510,1725959441454,-1710.66,0.00012051,2]
[337686511,1725959441463,-1114.35,0.00012051,2]
[337686512,1725959441475,-8774.38,0.00012051,2]
[337686513,1725959441484,-2396.32,0.00012051,2]
[337686514,1725959441493,-594.9803582,0.00012051,2]
[337686515,1725959441502,-500.0,0.00012051,2]
[337686516,1725959441511,-635.96,0.00012051,2]
[337686517,1725959441521,-15239.57,0.00012051,2]
[337686518,1725959441530,-6050.87,0.00012051,2]
[337686519,1725959441539,-8969.69,0.00012051,2]
[337686520,1725959441601,-814.92,0.00012051,2]
[337686521,1725959441610,-844.51,0.00012051,2]
[337686522,1725959441619,-523.05,0.00012051,2]
[337686523,1725959441628,-1016.5,0.00012051,2]
[337686524,1725959441637,-38742.17,0.00012051,2]
[337686525,1725959441649,-6283.1,0.00012051,2]
[337686526,1725959441657,-500.0,0.00012051,2]
[337686527,1725959441667,-518.08,0.00012051,2]
[337686528,1725959441676,-500.0,0.00012052,2]
[337686529,1725959441685,-500.0,0.00012052,2]
[337686530,1725959441695,-500.0,0.00012052,2]
[337686531,1725959441704,-1340.27,0.00012052,2]
[337686532,1725959441713,-500.16176681,0.00012052,2]
[337686533,1725959441724,-500.0,0.00012052,2]
[337686534,1725959441733,-2760.14,0.00012052,2]
[337686535,1725959441742,-2580.91,0.00012052,2]
[337686536,1725959441752,-1710.7,0.00012052,2]
[337686537,1725959441761,-500.0,0.00012052,2]
[337686538,1725959441771,-1142.88,0.00012052,2]
[337686539,1725959441780,-2202.57,0.00012052,2]
[337686540,1725959441789,-500.0,0.00012052,2]
[337686541,1725959441799,-500.0,0.00012052,2]
[337686542,1725959441809,-1395.02,0.00012052,2]
[337686543,1725959441819,-1080.84,0.00012052,2]
[337686544,1725959441828,-3273.19,0.00012052,2]
[337686545,1725959441837,-4386.18,0.00012052,2]
[337686546,1725959441847,-515.92,0.00012052,2]
[337686547,1725959441856,-500.0,0.00012052,2]
[337686548,1725959441865,-2301.03,0.00012052,2]
[337686549,1725959441874,-500.0,0.00012052,2]